bitfinex/quotes_ETHUSD_20241103
["timestamp","ask_amount","ask_price","bid_price","bid_amount"]
[1730648103202,4.17650242,2428.2,2427.0,0.02]
[1730648103407,4.17650242,2428.2,2427.1,4.0]
[1730648103624,4.11852,2428.1,2427.2,3.55]
[1730648103825,8.23707,2428.1,2427.2,3.55]
[1730648104141,0.05807242,2428.2,2427.2,3.55]
[1730648104142,4.11903,2427.8,2427.2,3.55]
[1730648104344,0.05807242,2428.2,2427.4,0.55]
[1730648104545,0.05807242,2428.2,2427.3,4.755]
[1730648104546,4.11963,2427.4,2427.3,4.0]
[1730648104766,4.12013,2427.2,2426.5,0.06182152]
[1730648105052,3.01,2428.1,2426.5,0.06182152]
[1730648105053,4.11953,2427.5,2426.5,0.06182152]
[1730648105405,4.1193,2427.6,2426.8,4.0]
[1730648105747,4.11949,2427.5,2426.9,0.4]
[1730648106042,4.12016,2427.1,2426.9,0.4]
[1730648106341,4.1204,2427.0,2426.8,4.0]
[1730648107018,4.1204,2427.0,2426.6,3.0]
[1730648107357,4.12049,2426.9,2426.7,4.0]
[1730648107559,4.12032,2427.0,2426.7,4.0]
[1730648107722,4.12032,2427.0,2426.7,1.23039415]
[1730648108156,4.12032,2427.0,2426.5,4.18288152]
[1730648108157,4.12032,2427.0,2426.6,0.55]
[1730648108422,4.11991,2427.3,2426.8,0.55]
[1730648108758,4.12016,2427.1,2426.8,0.55]
[1730648108959,4.12016,2427.1,2426.6,7.67098]
[1730648109150,4.12016,2427.1,2426.8,0.55]
[1730648109650,4.12002,2427.2,2426.8,0.55]
[1730648109859,4.12002,2427.2,2426.6,0.55]
[1730648110016,4.1199,2427.3,2426.6,0.55]
[1730648110670,4.12058,2426.9,2426.6,0.55]
[1730648110953,4.11931,2427.6,2425.9,0.42962168]
[1730648110954,4.12088,2426.7,2425.9,0.42962168]
[1730648111117,4.12118,2426.5,2425.9,0.42962168]
[1730648111319,4.12151,2426.3,2425.5,0.07162364]
[1730648111519,4.12169,2426.2,2425.5,0.40164172]
[1730648111721,4.12188,2426.1,2425.5,0.33001808]
[1730648112021,4.12119,2426.5,2425.6,0.0824387]
[1730648112219,4.12141,2426.4,2425.4,0.43967134]
[1730648112869,4.12119,2426.5,2425.4,0.44967134]
[1730648113166,8.24247,2426.5,2425.4,0.44967134]
[1730648113337,4.12119,2426.5,2425.4,0.44967134]
[1730648113660,4.12119,2426.5,2426.0,0.55]
[1730648113866,4.12093,2426.7,2426.2,4.67158]
[1730648114029,8.24188,2426.7,2426.2,0.55]
[1730648114358,8.24185,2426.7,2426.2,4.67163]
[1730648114558,4.12092,2426.7,2426.3,0.879337]
[1730648115057,8.09185,2426.7,2426.3,0.879337]
[1730648115471,3.97092,2426.7,2426.3,0.879337]
[1730648115621,4.1206,2426.9,2426.3,0.879337]
[1730648115622,4.1206,2426.9,2426.3,5.000837]
[1730648116059,4.1207,2426.8,2426.4,0.63241913]
[1730648116221,4.1207,2426.8,2426.5,0.56331361]
[1730648116428,4.12058,2426.9,2426.5,0.56331361]
[1730648116733,8.2412,2426.9,2426.5,0.56331361]
[1730648116939,4.12067,2426.8,2426.5,0.56331361]
[1730648117867,4.1393,2427.6,2426.5,0.56331361]
[1730648117868,4.11912,2427.7,2426.5,0.64573032]
[1730648118027,4.12057,2426.9,2426.5,0.56331361]
[1730648118224,4.12057,2426.9,2426.6,0.41133136]
[1730648120148,8.24119,2426.9,2426.6,0.41133136]
[1730648120548,4.1207,2426.8,2426.6,0.41133136]
[1730648120886,4.12057,2426.9,2426.6,0.41133136]
[1730648121379,4.1205,2426.9,2426.6,0.41133136]
[1730648121844,7.11929,2427.6,2426.6,0.41133136]
[1730648122052,4.11946,2427.5,2426.3,3.0]
[1730648122443,7.12929,2427.6,2426.3,3.0]
[1730648122444,4.12031,2427.0,2426.4,4.12124]
[1730648122843,4.12031,2427.0,2426.4,4.20365807]
[1730648123077,4.12056,2426.9,2426.4,4.20365807]
[1730648123333,4.12056,2426.9,2426.5,1.13251481]
[1730648123514,4.12031,2427.0,2426.5,1.13251481]
[1730648123788,4.11975,2427.4,2426.9,4.12046]
[1730648124375,4.11975,2427.4,2426.9,4.20286267]
[1730648124562,4.11975,2427.4,2427.0,0.83233527]
[1730648125058,4.11973,2427.4,2427.0,0.83233527]
[1730648125650,4.11974,2427.4,2427.0,0.83233527]
[1730648125877,4.11861,2428.0,2427.0,0.83233527]
[1730648126102,8.24008,2427.2,2426.7,3.55]
[1730648126257,4.12016,2427.1,2426.7,3.55]
[1730648126572,8.24006,2427.2,2426.7,7.75320631]
[1730648126776,8.24006,2427.2,2426.7,7.6708]
[1730648126969,4.11973,2427.4,2426.9,4.12045]
[1730648127192,4.11972,2427.4,2427.0,0.412045]
[1730648127781,4.11972,2427.4,2427.0,4.532315]
[1730648127980,4.11989,2427.3,2427.0,0.412045]
[1730648128189,4.11972,2427.4,2427.0,0.412045]
[1730648128771,4.93128,2427.3,2427.0,0.412045]
[1730648128973,4.12007,2427.2,2427.0,0.412045]
[1730648129208,4.12007,2427.2,2426.7,7.67075]
[1730648130105,4.93128,2427.3,2426.9,0.55]
[1730648130410,4.12008,2427.2,2426.8,0.55]
[1730648130909,0.8114,2427.3,2426.8,4.67063]
[1730648131077,4.93121,2427.3,2426.8,4.67054]
[1730648131280,4.93121,2427.3,2426.9,0.767054]
[1730648131807,4.93121,2427.3,2426.9,4.887494]
[1730648132181,4.93121,2427.3,2426.9,4.96989294]
[1730648132788,0.8231,2427.7,2427.4,4.11962]
[1730648133003,4.11889,2427.9,2427.4,4.11962]
[1730648133314,4.11889,2427.9,2427.5,0.411962]
[1730648133480,8.23777,2427.9,2427.5,0.411962]
[1730648133681,4.11888,2427.9,2427.5,0.411962]
[1730648133870,4.11887,2427.9,2427.5,0.411962]
[1730648134586,4.94172,2428.0,2427.5,4.531412]
[1730648134792,4.94172,2428.0,2427.6,0.4531412]
[1730648134989,0.8231,2428.0,2427.6,0.4531412]
[1730648135410,4.94173,2428.0,2427.6,0.4531412]
[1730648135724,0.8231,2428.0,2427.6,4.5723512]
[1730648135875,0.88117242,2428.2,2427.7,0.55]
[1730648136081,4.99954242,2428.2,2427.7,5.18127512]
[1730648136926,0.05807242,2428.2,2427.9,4.66866]
[1730648137083,0.05807242,2428.2,2427.9,4.75102704]
[1730648137279,0.05807242,2428.2,2427.9,4.66866]
[1730648137583,0.05807242,2428.2,2427.8,3.55]
[1730648137782,4.17638242,2428.2,2427.9,0.81812251]
[1730648137976,0.8231,2428.1,2427.5,4.11934]
[1730648138184,4.11903,2427.8,2427.5,0.55]
[1730648138405,4.11918,2427.7,2427.4,0.55]
[1730648138601,4.11918,2427.7,2427.0,0.85833734]
[1730648138602,4.11939,2427.6,2426.9,4.887404]
[1730648139086,0.8231,2427.7,2427.1,4.11998]
[1730648139298,4.94222,2427.7,2427.2,4.531948]
[1730648139482,4.1194,2427.6,2427.2,0.411998]
[1730648140329,4.1194,2427.6,2426.9,0.767054]
[1730648140330,8.23991,2427.3,2426.9,0.767054]
[1730648140624,9.06298,2427.3,2426.8,4.62064]
[1730648140913,9.06298,2427.3,2426.8,0.5]
[1730648140914,8.24022,2427.2,2426.8,0.5]
[1730648141114,4.12008,2427.2,2426.8,0.5]
[1730648141323,0.8231,2427.3,2426.9,4.582522]
[1730648141621,4.11998,2427.2,2426.9,0.462082]
[1730648142202,4.12019,2427.1,2426.9,0.462082]
[1730648142413,4.12019,2427.1,2426.8,0.5]
[1730648142723,4.9429,2427.3,2426.8,4.6206]
[1730648142928,4.11977,2427.4,2426.8,1.2674]
[1730648143099,4.11998,2427.2,2426.8,1.338812]
[1730648144942,4.11998,2427.2,2426.8,5.459452]
[1730648146116,4.11998,2427.2,2426.8,1.338812]
[1730648146328,8.24009,2427.2,2426.8,4.338812]
[1730648146527,4.11998,2427.2,2426.8,1.338812]
[1730648146698,4.12018,2427.1,2426.8,1.338812]
[1730648147023,8.24011,2427.2,2426.8,1.338812]
[1730648147225,4.11998,2427.2,2426.8,5.459442]
[1730648147421,4.11998,2427.2,2426.9,0.8459442]
[1730648148131,8.24006,2427.2,2426.9,0.8459442]
[1730648148417,4.11998,2427.2,2426.9,0.8459442]
[1730648148822,8.24008,2427.2,2426.9,0.8459442]
[1730648148989,4.11998,2427.2,2426.9,0.8459442]
[1730648149617,4.11998,2427.2,2427.0,0.54665742]
[1730648149821,4.91561,2427.3,2427.0,0.54665742]
[1730648150585,4.12006,2427.2,2427.0,0.54665742]
[1730648150839,4.91561,2427.3,2426.9,0.8459442]
[1730648150992,4.91561,2427.3,2426.8,4.62065]
[1730648151613,4.12003,2427.2,2426.8,4.62065]
[1730648152122,4.91561,2427.3,2426.8,8.7413]
[1730648152323,4.1196,2427.5,2427.0,4.12029]
[1730648152529,4.1196,2427.5,2426.9,5.43947]
[1730648152730,4.1196,2427.5,2427.0,1.006009]
[1730648152731,4.11975,2427.4,2427.0,1.006009]
[1730648153410,4.1196,2427.5,2427.0,5.126229]
[1730648153591,8.23918,2427.5,2427.0,5.126229]
[1730648153792,4.11958,2427.5,2427.0,5.126229]
[1730648153995,8.23914,2427.5,2427.0,5.126229]
[1730648154232,8.23914,2427.5,2427.1,0.65276275]
[1730648154925,4.11956,2427.5,2427.1,0.65276275]
[1730648155132,0.7958,2427.8,2427.3,4.11972]
[1730648155424,4.11929,2427.6,2427.2,0.55]
[1730648155724,4.11949,2427.5,2427.2,1.55977718]
[1730648156631,4.11949,2427.5,2427.2,0.55]
[1730648158349,4.11929,2427.6,2427.2,0.55]
[1730648158843,4.11931,2427.6,2427.2,0.55]
[1730648159138,0.7958,2427.8,2427.2,0.55]
[1730648159139,4.11914,2427.7,2427.2,0.55]
[1730648159309,4.11914,2427.7,2427.2,4.66989]
[1730648159505,4.11937,2427.6,2427.3,0.96413215]
[1730648160439,4.11951,2427.5,2427.3,0.96413215]
[1730648160650,4.11951,2427.5,2427.2,0.55]
[1730648161343,0.8058,2427.3,2426.8,0.5]
[1730648161551,4.12001,2427.2,2426.8,0.5]
[1730648163244,0.8058,2427.3,2426.8,4.62053]
[1730648163547,4.92516,2427.6,2427.1,1.3731]
[1730648163717,0.8058,2427.6,2427.1,1.3731]
[1730648163919,4.11959,2427.5,2427.1,1.3731]
[1730648164151,4.11959,2427.5,2427.1,5.49323]
[1730648164311,4.11959,2427.5,2427.2,0.549323]
[1730648164512,4.11958,2427.5,2427.2,0.549323]
[1730648165614,4.9251,2427.6,2427.2,4.669273]
[1730648165855,4.9251,2427.6,2427.2,4.669283]
[1730648166057,4.11922,2427.7,2427.3,1.0162513]
[1730648166222,4.11938,2427.6,2427.3,1.0162513]
[1730648166734,4.11963,2427.4,2427.3,1.0162513]
[1730648166919,4.11963,2427.4,2427.1,1.3731]
[1730648167120,4.11954,2427.5,2427.1,1.3731]
[1730648167741,4.11954,2427.5,2427.1,5.49324]
[1730648168633,4.11954,2427.5,2427.1,1.3731]
[1730648169367,4.11929,2427.6,2427.1,5.49312]
[1730648169668,4.11946,2427.5,2427.2,0.96957452]
[1730648169854,1.66372752,2427.8,2427.3,0.55]
[1730648170043,0.85792752,2428.1,2427.8,4.11894]
[1730648170238,0.91599994,2428.2,2427.8,8.23781]
[1730648170551,0.05807242,2428.2,2427.8,4.11887]
[1730648170727,4.11845,2428.1,2427.8,0.961114]
[1730648170921,0.05807242,2428.2,2427.8,0.961114]
[1730648171121,0.05807242,2428.2,2427.8,5.079984]
[1730648171352,4.17639242,2428.2,2427.8,5.079974]
[1730648171663,0.05807242,2428.2,2427.8,5.080054]
[1730648171965,0.05807242,2428.2,2428.0,5.49158]
[1730648172188,0.05807242,2428.2,2428.1,4.7507968]
[1730648172368,0.05807242,2428.2,2428.1,1.3731]
[1730648172535,0.05807242,2428.2,2428.1,0.8231]
[1730648172742,0.05807242,2428.2,2428.0,0.55]
[1730648172941,0.05807242,2428.2,2428.1,0.50184154]
[1730648173171,0.05807242,2428.2,2428.1,1.05184154]
[1730648173639,0.05807242,2428.2,2428.1,5.99338154]
[1730648177051,0.05807242,2428.2,2428.1,1.87494154]
[1730648177380,0.05807242,2428.2,2428.1,0.8231]
[1730648177581,0.05807242,2428.2,2427.9,0.6453154]
[1730648177949,4.17636242,2428.2,2427.9,0.6453154]
[1730648178643,4.11845,2428.1,2427.6,4.90076]
[1730648178981,0.05807242,2428.2,2427.8,4.11894]
[1730648179142,0.05807242,2428.2,2427.9,4.90011]
[1730648179343,0.05807242,2428.2,2427.9,0.7815]
[1730648179555,0.05807242,2428.2,2427.8,4.11894]
[1730648179845,0.05807242,2428.2,2427.9,0.411894]
[1730648180092,4.17636242,2428.2,2427.9,0.411894]
[1730648180641,0.05807242,2428.2,2427.9,0.411894]
[1730648181670,4.17635242,2428.2,2427.9,0.411894]
[1730648182087,0.05807242,2428.2,2427.9,0.411894]
[1730648182251,0.05807242,2428.2,2428.0,0.4530834]
[1730648184443,0.05807242,2428.2,2428.0,4.5716734]
[1730648184669,0.05807242,2428.2,2428.0,0.4530834]
[1730648185268,0.05807242,2428.2,2428.0,4.5716734]
[1730648185685,0.05807242,2428.2,2428.1,5.44994]
[1730648185848,0.05807242,2428.2,2428.1,6.50152847]
[1730648186400,0.05807242,2428.2,2428.1,9.58388363]
[1730648186552,0.05807242,2428.2,2428.1,9.50152847]
[1730648187256,4.11692,2429.0,2428.1,9.50152847]
[1730648187257,4.11692,2429.0,2428.2,3.0]
[1730648187587,4.11692,2429.0,2428.6,0.55]
[1730648187764,4.11692,2429.0,2428.6,1.094941]
[1730648187947,0.8213,2429.1,2428.6,1.094941]
[1730648188471,4.11676,2429.1,2428.7,4.11742]
[1730648188680,4.117,2429.0,2428.6,1.094941]
[1730648188847,4.1172,2428.9,2428.6,0.544941]
[1730648189051,4.11732,2428.8,2428.6,0.544941]
[1730648189250,4.1172,2428.9,2428.6,0.544941]
[1730648189580,4.11734,2428.8,2428.6,0.544941]
[1730648189751,4.1172,2428.9,2428.6,0.544941]
[1730648190293,4.11725,2428.9,2428.5,0.7815]
[1730648190786,4.11692,2429.0,2428.6,0.55]
[1730648190991,4.11675,2429.1,2428.7,4.11741]
[1730648191353,0.03610029,2429.0,2428.6,0.55]
[1730648191652,4.11716,2428.9,2428.6,0.55]
[1730648192053,0.03779974,2428.8,2428.6,1.806715]
[1730648192703,4.92492974,2428.8,2428.6,1.256715]
[1730648192858,4.92492974,2428.8,2428.4,3.0]
[1730648192859,4.11751,2428.7,2428.4,0.55]
[1730648193060,8.27284701,2428.7,2428.4,0.55]
[1730648193591,4.11768,2428.6,2428.1,1.8168]
[1730648193789,4.88776,2428.4,2428.2,4.0]
[1730648193988,4.1181,2428.3,2428.2,4.0]
[1730648194194,4.15588247,2428.3,2428.2,4.0]
[1730648194359,4.11827,2428.2,2428.1,1.0]
[1730648194789,4.15598339,2428.2,2428.1,1.0]
[1730648196788,4.15598339,2428.2,2428.1,1.5]
[1730648197773,0.03771339,2428.2,2428.1,1.5]
[1730648197978,4.1181,2428.3,2428.1,1.5]
[1730648198171,0.03745425,2428.2,2428.1,1.5]
[1730648198574,4.1181,2428.3,2428.1,1.5]
[1730648198799,0.03746721,2428.2,2428.1,1.5]
[1730648199007,4.1181,2428.3,2428.1,2.061869]
[1730648199299,0.03746721,2428.2,2428.1,2.061869]
[1730648199672,4.11786,2428.5,2428.1,2.061869]
[1730648199874,4.11794,2428.4,2428.1,2.061869]
[1730648200086,4.15540721,2428.4,2428.1,2.061869]
[1730648200291,0.03746721,2428.4,2428.1,2.061869]
[1730648200599,0.03746721,2428.4,2428.2,0.6997259]
[1730648200984,4.11819,2428.3,2428.1,1.5]
[1730648201190,4.11827,2428.2,2428.1,1.5]
[1730648201360,0.03733336,2428.2,2428.1,1.5]
[1730648201562,4.11819,2428.3,2428.1,1.5]
[1730648201760,0.03733336,2428.2,2428.1,1.5]
[1730648201970,4.15560336,2428.2,2428.1,1.5]
[1730648202172,4.92540336,2428.2,2428.1,1.5]
[1730648203222,0.03733336,2428.2,2428.1,1.5]
[1730648203511,4.11793,2428.4,2428.1,1.5]
[1730648203675,0.03608891,2428.2,2428.1,1.5]
[1730648203882,9.0056,2428.5,2428.1,2.061878]
[1730648204211,4.11794,2428.4,2428.1,2.061878]
[1730648204375,0.03608891,2428.4,2428.1,2.061878]
[1730648204562,8.2364,2428.3,2428.1,1.5]
[1730648204962,0.03608891,2428.2,2428.1,1.5]
[1730648205179,8.2364,2428.3,2428.1,1.5]
[1730648205381,0.03608891,2428.2,2428.1,1.5]
[1730648205594,4.11819,2428.3,2428.1,1.5]
[1730648205808,0.03608891,2428.2,2428.1,1.5]
[1730648205966,8.23644,2428.3,2428.1,1.5]
[1730648206167,4.15435891,2428.2,2428.1,1.5]
[1730648206367,4.93495891,2428.2,2428.1,1.5]
[1730648207481,0.03608891,2428.2,2428.1,1.5]
[1730648207681,0.03608891,2428.2,2428.1,1.73231]
[1730648208209,4.11811,2428.3,2428.1,1.73231]
[1730648208394,0.03608891,2428.2,2428.1,1.73231]
[1730648208579,4.11827,2428.2,2428.1,1.73231]
[1730648208780,4.15435891,2428.2,2428.1,1.5]
[1730648209666,0.03608891,2428.2,2428.1,1.5]
[1730648210089,4.11811,2428.3,2428.1,1.5]
[1730648210289,0.03608891,2428.2,2428.1,1.5]
[1730648210712,4.11827,2428.2,2428.1,1.5]
[1730648212218,4.89887,2428.2,2428.1,1.5]
[1730648212371,5.76094427,2428.2,2428.1,1.5]
[1730648213372,5.76182286,2428.2,2428.1,1.5]
[1730648213573,4.89887,2428.2,2428.1,1.5]
[1730648216314,5.76250188,2428.2,2428.1,1.5]
[1730648217392,4.89887,2428.2,2428.1,1.5]
[1730648218019,4.11827,2428.2,2428.1,1.5]
[1730648218187,8.23636,2428.3,2428.1,1.5]
[1730648218511,4.1181,2428.3,2428.1,1.5]
[1730648219212,4.11827,2428.2,2428.1,1.5]
[1730648220429,4.11812,2428.3,2428.1,1.5]
[1730648220576,1.29522196,2428.5,2428.1,2.3034]
[1730648220577,4.98136131,2428.5,2428.1,2.3034]
[1730648220776,4.11794,2428.4,2428.2,0.642194]
[1730648220979,4.11794,2428.4,2428.1,2.3034]
[1730648221425,4.11827,2428.2,2428.1,2.3034]
[1730648221619,4.11827,2428.2,2428.1,1.5]
[1730648223833,4.98189623,2428.2,2428.1,1.5]
[1730648224320,5.41370935,2428.2,2428.1,1.5]
[1730648224519,4.11827,2428.2,2428.1,1.5]
[1730648225032,4.98190594,2428.2,2428.1,1.5]
[1730648225721,4.98186056,2428.2,2428.1,1.5]
[1730648226651,4.11827,2428.2,2428.1,1.5]
[1730648227921,4.98186056,2428.2,2428.1,1.5]
[1730648228470,4.11827,2428.2,2428.1,1.5]
[1730648229433,4.98174904,2428.2,2428.1,1.5]
[1730648230151,6.21608856,2428.2,2428.1,1.5]
[1730648231043,4.92087,2428.2,2428.1,1.5]
[1730648231239,9.21604944,2428.2,2428.1,1.5]
[1730648231557,9.64782809,2428.2,2428.1,1.5]
[1730648231724,10.07947729,2428.2,2428.1,1.5]
[1730648232263,6.21577099,2428.2,2428.1,1.5]
[1730648233459,6.64747286,2428.2,2428.1,1.5]
[1730648233651,6.21606577,2428.2,2428.1,1.5]
[1730648233824,9.64747286,2428.2,2428.1,1.5]
[1730648235065,10.07947729,2428.2,2428.1,1.5]
[1730648235472,10.0906053,2428.2,2428.1,1.5]
[1730648237263,7.93087,2428.2,2428.1,1.5]
[1730648237566,10.08986409,2428.2,2428.1,1.5]
[1730648237866,7.93087,2428.2,2428.1,1.5]
[1730648238759,10.08984208,2428.2,2428.1,1.5]
[1730648239724,10.07984208,2428.2,2428.1,1.5]
[1730648240230,7.92087,2428.2,2428.1,1.5]
[1730648240426,7.93087,2428.2,2428.1,1.5]
[1730648241467,7.92087,2428.2,2428.1,1.5]
[1730648241624,10.08948317,2428.2,2428.1,1.5]
[1730648242023,10.07948317,2428.2,2428.1,1.5]
[1730648242253,9.64764157,2428.2,2428.1,1.5]
[1730648242440,7.92087,2428.2,2428.1,1.5]
[1730648242741,7.11827,2428.2,2428.1,1.5]
[1730648243877,8.41321324,2428.2,2428.1,1.5]
[1730648244226,9.66026099,2428.2,2428.1,1.5]
[1730648244530,10.10190874,2428.2,2428.1,1.5]
[1730648245031,4.12014,2427.1,2427.0,0.87548791]
[1730648245458,0.8054,2427.5,2426.6,0.6444575]
[1730648245459,4.12065,2426.8,2426.6,0.6444575]
[1730648245774,4.12065,2426.8,2426.7,0.8138]
[1730648246567,4.12033,2427.0,2426.7,0.8138]
[1730648247670,8.2408,2427.0,2426.7,0.8138]
[1730648247859,4.12033,2427.0,2426.7,0.8138]
[1730648248568,4.12051,2426.9,2426.7,0.8138]
[1730648248741,4.12033,2427.0,2426.7,0.8138]
[1730648248948,4.12033,2427.0,2426.7,1.36355095]
[1730648249270,4.1203,2427.1,2426.7,0.8138]
[1730648249657,4.12033,2427.0,2426.7,0.8138]
[1730648250474,4.12031,2427.0,2426.7,0.8138]
[1730648250771,4.12053,2426.9,2426.7,0.8138]
[1730648251131,4.12031,2427.0,2426.7,0.8138]
[1730648251533,4.12031,2427.0,2426.7,1.36355195]
[1730648251871,4.12017,2427.1,2426.7,1.36355195]
[1730648252026,4.12017,2427.1,2426.8,0.8098]
[1730648253167,4.12009,2427.2,2426.8,4.12057]
[1730648253350,4.12009,2427.2,2426.9,0.8098]
[1730648253868,4.11981,2427.3,2426.9,0.8098]
[1730648254072,3.0,2427.5,2426.9,0.8098]
[1730648254073,9.1012719,2427.6,2427.0,0.8098]
[1730648254239,4.11967,2427.4,2427.2,0.8098]
[1730648255129,4.1198,2427.3,2427.2,0.8098]
[1730648255337,0.8624719,2427.6,2426.8,4.12064]
[1730648255338,4.12035,2427.0,2426.8,0.5]
[1730648255958,4.12048,2426.9,2426.8,0.5]
[1730648256189,4.12031,2427.0,2426.8,0.5]
[1730648256680,8.24072,2427.0,2426.8,0.5]
[1730648257157,4.12048,2426.9,2426.8,0.5]
[1730648259459,4.12048,2426.9,2426.8,1.0]
[1730648259663,4.93998,2426.9,2426.8,1.0]
[1730648260976,7.93998,2426.9,2426.8,1.0]
[1730648263598,7.93998,2426.9,2426.8,1.5]
[1730648264852,7.12048,2426.9,2426.8,1.5]
[1730648265560,4.12048,2426.9,2426.8,1.5]
[1730648267665,4.12048,2426.9,2426.8,2.0]
[1730648271903,4.12048,2426.9,2426.8,2.5]
[1730648275502,7.92698,2426.9,2426.8,2.5]
[1730648276013,8.78810049,2426.9,2426.8,2.5]
[1730648278340,7.92698,2426.9,2426.8,2.5]
[1730648278531,8.78810049,2426.9,2426.8,2.5]
[1730648279796,9.22866073,2426.9,2426.8,2.5]
[1730648279998,9.65922098,2426.9,2426.8,2.5]
[1730648280255,6.76405269,2427.0,2425.1,0.7644]
[1730648280256,0.01,2425.9,2425.1,0.7644]
[1730648280425,4.12337,2425.2,2425.1,1.40970518]
[1730648280606,4.12337,2425.2,2424.9,0.7644]
[1730648281092,4.12363,2425.1,2424.9,0.7644]
[1730648281342,4.12371,2425.0,2424.9,0.7644]
[1730648281503,4.12371,2425.0,2424.6,0.0594071]
[1730648281706,4.12396,2424.9,2424.6,0.0594071]
[1730648282442,4.12371,2425.0,2424.6,0.0594071]
[1730648282740,4.12371,2425.0,2424.6,0.56043355]
[1730648283413,4.12388,2424.9,2424.6,0.56043355]
[1730648283806,4.12355,2425.1,2424.6,0.56043355]
[1730648284137,8.2472,2425.1,2424.6,0.56043355]
[1730648284302,4.12337,2425.2,2424.7,0.8122]
[1730648284500,4.12349,2425.2,2424.7,0.8122]
[1730648284699,0.86208819,2426.2,2424.7,1.31181571]
[1730648284700,4.1237,2425.1,2424.7,1.31181571]
[1730648284901,4.1239,2424.9,2424.7,0.8122]
[1730648285297,4.12374,2425.0,2424.7,0.8122]
[1730648285503,4.1237,2425.1,2424.7,0.8122]
[1730648285944,4.12373,2425.0,2424.7,0.8122]
[1730648287039,7.93932,2424.7,2424.6,0.0594071]
[1730648287341,7.92932,2424.7,2424.6,0.0594071]
[1730648288919,7.93932,2424.7,2424.6,0.0594071]
[1730648290032,7.94932,2424.7,2424.6,0.0594071]
[1730648290216,8.49932,2424.7,2424.6,7.1e-06]
[1730648291038,7.94932,2424.7,2424.6,7.1e-06]
[1730648291631,8.49932,2424.7,2424.6,7.1e-06]
[1730648292036,7.94932,2424.7,2424.6,7.1e-06]
[1730648292826,7.94932,2424.7,2423.4,0.0594071]
[1730648292827,3.0,2424.0,2423.4,0.0594071]
[1730648293109,4.12587,2423.8,2423.4,0.0594071]
[1730648293314,4.12611,2423.6,2423.4,0.0594071]
[1730648294255,4.12586,2423.8,2423.4,0.0594071]
[1730648294625,4.12609,2423.6,2423.4,0.0594071]
[1730648295744,8.25226,2423.6,2423.4,0.0594071]
[1730648295945,4.12592,2423.7,2423.4,0.0594071]
[1730648296362,4.1261,2423.6,2423.4,0.0594071]
[1730648296654,4.12626,2423.5,2423.4,0.0594071]
[1730648297918,9.02608,2423.6,2423.4,0.0594071]
[1730648298459,9.02609,2423.6,2423.4,0.0594071]
[1730648298677,9.02609,2423.6,2422.3,7.12925]
[1730648298678,0.7738,2423.0,2422.3,0.8232]
[1730648298875,4.12747,2422.8,2422.0,4.95192]
[1730648299034,4.1279,2422.6,2422.0,0.8232]
[1730648299359,4.13772,2422.7,2422.0,0.8232]
[1730648299360,8.2655,2422.7,2422.0,0.8232]
[1730648299570,4.12787,2422.6,2422.0,0.8232]
[1730648299717,4.12772,2422.7,2422.0,0.8232]
[1730648299940,0.7838,2423.0,2421.6,0.64558302]
[1730648299941,3.02,2423.2,2422.3,0.8232]
[1730648300235,3.0,2423.0,2422.3,5.45250371]
[1730648300440,3.0,2423.0,2422.4,4.12812]
[1730648300626,0.7738,2423.3,2422.5,4.12793]
[1730648300826,3.7738,2423.3,2422.6,4.12777]
[1730648301051,3.7738,2423.3,2422.7,0.8232]
[1730648301254,7.91006,2423.5,2422.7,4.95072]
[1730648301436,0.7738,2423.5,2422.7,5.445792]
[1730648301628,0.7738,2423.5,2422.8,4.12732]
[1730648301962,4.12671,2423.3,2422.7,1.318272]
[1730648302117,4.13746,2422.8,2422.2,0.0594071]
[1730648302320,4.12665,2423.3,2422.2,0.0594071]
[1730648302321,4.14789,2422.6,2422.2,0.0594071]
[1730648302566,4.12797,2422.5,2422.2,0.0594071]
[1730648302724,0.01,2422.6,2422.2,0.0594071]
[1730648303337,3.7738,2422.7,2422.2,0.0594071]
[1730648303566,3.0,2422.6,2422.2,0.0594071]
[1730648303794,3.0,2422.8,2422.2,0.0594071]
[1730648303919,7.12736,2422.9,2422.2,0.0594071]
[1730648304121,0.7738,2423.0,2422.3,4.12828]
[1730648304329,0.7738,2423.0,2422.3,4.1282]
[1730648304520,0.01,2423.5,2422.5,4.12785]
[1730648304776,0.01,2423.5,2422.7,4.12752]
[1730648305064,4.12644,2423.4,2422.6,0.8232]
[1730648305224,4.12664,2423.3,2422.6,0.8232]
[1730648305427,0.7738,2423.6,2422.7,4.12752]
[1730648305623,4.90005,2423.6,2422.7,4.12752]
[1730648306023,4.90005,2423.6,2422.8,4.12745]
[1730648306226,4.12625,2423.6,2422.9,0.8232]
[1730648306732,4.12626,2423.5,2422.9,0.8232]
[1730648307677,4.12675,2423.3,2422.9,0.8232]
[1730648308734,4.12673,2423.3,2422.9,0.8232]
[1730648309281,8.25348,2423.3,2422.9,0.8232]
[1730648309841,8.25348,2423.3,2422.9,0.7732]
[1730648310057,8.25348,2423.3,2422.2,0.0594071]
[1730648310058,0.01,2423.1,2422.2,0.0594071]
[1730648310261,4.12799,2422.5,2422.2,0.0594071]
[1730648310652,8.25609,2422.5,2422.2,0.0594071]
[1730648311034,4.12799,2422.5,2422.2,0.0594071]
[1730648311294,8.25607,2422.5,2422.2,0.0594071]
[1730648311495,4.12799,2422.5,2422.2,0.0594071]
[1730648311857,8.25608,2422.5,2422.2,0.0594071]
[1730648312195,4.12799,2422.5,2422.2,0.0594071]
[1730648312485,4.12773,2422.7,2422.2,0.0594071]